Workbook

Sheet 直通车
D6: 直通车费用计算表
D8: 日销售目标
E9: 日订单数 | F9: 30
E10: 目标UV | F10: 300
E11: 直通车UV | F11: =F10-150 -> 150
E12: 直通车目标销售额 | F12: =L19*H19 -> 2600
E13: 点击数 | F13: =F19 -> 400
E14: 点击率 | F14: =N19 -> 0.4
E15: 展现数 | F15: =O19 -> 1000
E16: 最高点击单价 | F16: =G19 -> 1.95
E18: 点击转化率 | F18: 点击数 | G18: 最高点击单价 | H18: 客单价 | I18: 目标销售额 | J18: 毛利率 | K18: 利润 | L18: 订单数 | M18: UV成本 | N18: 点击率 | O18: 展现数
E19: 0.05 | F19: =L19/E19 -> 400 | G19: =K19/F19 -> 1.95 | H19: 130 | I19: =L19*H19 -> 2600 | J19: 0.3 | K19: =I19*J19 -> 780 | L19: =F9-10 -> 20 | M19: =G19*F19/F11 -> 5.2 | N19: 0.4 | O19: =F19/N19 -> 1000
D21: 备注：上表中，日订单数、点击转化率、客单价、毛利率、目标uv、现有日单数、现有UV、点击率需手动填写。
E28: 直通车费用（以1元点击单价计） | G28: =1*F19 -> 400
E29: 销售利润 | G29: =K19 -> 780
E30: 减去直通车费用之后的利润 | G30: =G29-G28 -> 380
E31: 销售额/直通车费用 | G31: =I19/G28 -> 6.5
E32: 销售利润/直通车费用 | G32: =G29/G28 -> 1.95
E33: 减去直通车费用之后的利润/直通车费用 | G33: =G30/G28 -> 0.95

Sheet 钻展
D6: 钻展费用计算表
D8: 日销售目标
E9: 日订单数 | J9: =L20+10 -> 240.7692308
E10: CPM目标销售额 | J10: 30000
E11: 引入UV
E12: 单位UV费用
E13: 点击数 | J13: =J20 -> 11538.46154
E14: 点击率 | J14: =I20 -> 0.03
E15: 展现数 | J15: =E20 -> 384615.3846
E16: CPM数 | J16: =E20/1000 -> 384.6153846
E17: 最高每CPM出价 | J17: =H20 -> 23.4
E19: 展现数 | F19: CPM数 | G19: 位置 | H19: 每CPM最高费用 | I19: 点击率 | J19: 点击数 | K19: 转化率 | L19: 钻展订单数 | M19: 客单价 | N19: 销售额 | O19: 平均毛利率 | P19: 利润
E20: =J20/I20 -> 384615.3846 | F20: =E20/1000 -> 384.6153846 | H20: =P20/F20 -> 23.4 | I20: 0.03 | J20: =L20/K20 -> 11538.46154 | K20: 0.02 | L20: =N20/M20 -> 230.7692308 | M20: 130 | N20: =J10 -> 30000 | O20: 0.3 | P20: =N20*O20 -> 9000
D22: 备注：上表中，CPM目标销售额、转化率、客单价、平均毛利率、现有日单数、引入UV、点击率需手动填写。
E26: CPM费用（以1元CPM出价计） | H26: =1*F20 -> 384.6153846
E27: 销售利润 | H27: =P20 -> 9000
E28: 减去CPM费用之后的利润 | H28: =H27-H26 -> 8615.384615
E29: 销售额/CPM费用 | H29: =N20/H26 -> 78
E30: 销售利润/CPM费用 | H30: =H27/H26 -> 23.4
E31: 减去CPM费用之后的利润/CPM费用 | H31: =H28/H26 -> 22.4

Sheet Sheet3
